[Event "MCR rapid mládeže 2023 U16"]
[Site "Harachov, Czech Republic"]
[Date "2023.09.09"]
[Round "2.28"]
[White "Stepankova, Linda"]
[Black "Trcalkova, Ema"]
[Result "1-0"]
[TimeControl "20min+5s/move"]
[WhiteElo "1124"]
[BlackElo "1306"]

1. e4 {[%clk 00:19:58]} {[%emt 00:00:11]} e5 {[%clk 00:20:02]} {[%emt
00:00:09]} 2. Nf3 {[%clk 00:20:01]} {[%emt 00:00:02]} Nc6 {[%clk 00:20:04]}
{[%emt 00:00:02]} 3. Bb5 {[%clk 00:20:04]} {[%emt 00:00:02]} d6 {[%clk
00:20:01]} {[%emt 00:00:09]} 4. d4 {[%clk 00:17:07]} {[%emt 00:03:01]} Bd7
{[%clk 00:18:34]} {[%emt 00:01:32]} 5. O-O {[%clk 00:14:26]} {[%emt 00:02:47]}
Nf6 {[%clk 00:15:45]} {[%emt 00:02:53]} 6. Bxc6 {[%clk 00:12:14]} {[%emt
00:02:17]} Bxc6 {[%clk 00:15:41]} {[%emt 00:00:09]} 7. dxe5 {[%clk 00:06:48]}
{[%emt 00:05:30]} dxe5 {[%clk 00:15:28]} {[%emt 00:00:19]} 8. Qxd8+ {[%clk
00:05:59]} {[%emt 00:00:54]} Rxd8 {[%clk 00:15:27]} {[%emt 00:00:07]} 9. Nxe5
{[%clk 00:03:55]} {[%emt 00:02:09]} Bxe4 {[%clk 00:15:00]} {[%emt 00:00:32]} 10.
Bg5 {[%clk 00:01:38]} {[%emt 00:02:21]} Bxc2 {[%clk 00:13:03]} {[%emt
00:02:02]} 11. Bxf6 {[%clk 00:00:49]} {[%emt 00:00:54]} gxf6 {[%clk 00:13:04]}
{[%emt 00:00:05]} 12. Ng4 {[%clk 00:00:37]} {[%emt 00:00:17]} Bg7 {[%clk
00:12:55]} {[%emt 00:00:13]} 13. Re1+ {[%clk 00:00:30]} {[%emt 00:00:12]} Kd7
{[%clk 00:12:45]} {[%emt 00:00:14]} 14. Nc3 {[%clk 00:00:22]} {[%emt 00:00:14]}
Kc8 {[%clk 00:12:33]} {[%emt 00:00:16]} 15. h3 {[%clk 00:00:20]} {[%emt
00:00:06]} Rd2 {[%clk 00:11:45]} {[%emt 00:00:53]} 16. Re7 {[%clk 00:00:13]}
{[%emt 00:00:13]} f5 {[%clk 00:11:32]} {[%emt 00:00:18]} 17. Ne5 {[%clk
00:00:14]} {[%emt 00:00:03]} Bxe5 {[%clk 00:11:26]} {[%emt 00:00:12]} 18. Rxe5
{[%clk 00:00:19]} {[%emt 00:00:01]} Rg8 {[%clk 00:11:17]} {[%emt 00:00:13]} 19.
b3 {[%clk 00:00:12]} {[%emt 00:00:13]} f4 {[%clk 00:10:51]} {[%emt 00:00:31]}
20. Rae1 {[%clk 00:00:12]} {[%emt 00:00:04]} Rdd8 {[%clk 00:10:13]} {[%emt
00:00:43]} 21. h4 {[%emt 00:00:12]} f3 {[%clk 00:10:10]} {[%emt 00:00:04]} 22.
g3 {[%clk 00:00:13]} {[%emt 00:00:01]} b6 {[%clk 00:10:03]} {[%emt 00:00:13]}
23. R1e3 {[%clk 00:00:13]} {[%emt 00:00:04]} Rd2 {[%clk 00:09:18]} {[%emt
00:00:50]} 24. Rxf3 {[%clk 00:00:09]} {[%emt 00:00:10]} Bd1 {[%clk 00:09:21]}
{[%emt 00:00:01]} 25. Nxd1 {[%clk 00:00:10]} {[%emt 00:00:04]} Rxd1+ {[%clk
00:09:25]} {[%emt 00:00:02]} 26. Kg2 {[%clk 00:00:14]} Rg7 {[%clk 00:09:09]}
{[%emt 00:00:20]} 27. a4 {[%clk 00:00:18]} {[%emt 00:00:01]} Rd7 {[%clk
00:08:32]} {[%emt 00:00:42]} 28. Re8+ {[%clk 00:00:11]} {[%emt 00:00:12]} Kb7
{[%clk 00:08:17]} {[%emt 00:00:20]} 29. Ree3 {[%clk 00:00:15]} {[%emt
00:00:01]} a5 {[%clk 00:07:15]} {[%emt 00:01:08]} 30. Kh3 {[%clk 00:00:17]}
{[%emt 00:00:02]} c6 {[%clk 00:06:46]} {[%emt 00:00:35]} 31. Kg2 {[%clk
00:00:14]} {[%emt 00:00:08]} Ka6 {[%clk 00:06:46]} {[%emt 00:00:05]} 32. Kh3
{[%clk 00:00:17]} {[%emt 00:00:02]} b5 {[%clk 00:06:46]} {[%emt 00:00:05]} 33.
axb5+ {[%clk 00:00:20]} {[%emt 00:00:01]} cxb5 {[%clk 00:06:49]} {[%emt
00:00:02]} 34. g4 {[%clk 00:00:15]} {[%emt 00:00:09]} Rd4 {[%clk 00:06:18]}
{[%emt 00:00:36]} 35. g5 {[%clk 00:00:06]} {[%emt 00:00:15]} a4 {[%clk
00:06:00]} {[%emt 00:00:23]} 36. bxa4 {[%clk 00:00:10]} {[%emt 00:00:02]} bxa4
{[%clk 00:06:04]} {[%emt 00:00:01]} 37. Rg3 {[%clk 00:00:08]} {[%emt 00:00:07]}
Rf4 {[%clk 00:05:37]} {[%emt 00:00:31]} 38. Rgf3 {[%clk 00:00:07]} {[%emt
00:00:06]} Rxf3+ {[%clk 00:05:40]} {[%emt 00:00:02]} 39. Rxf3 {[%clk 00:00:11]}
{[%emt 00:00:01]} Kb5 {[%clk 00:05:43]} {[%emt 00:00:02]} 40. Kg4 {[%clk
00:00:14]} {[%emt 00:00:02]} Kb4 {[%clk 00:05:01]} {[%emt 00:00:48]} 41. h5
{[%clk 00:00:14]} {[%emt 00:00:04]} a3 {[%clk 00:05:02]} {[%emt 00:00:04]} 42.
Re3 {[%clk 00:00:15]} {[%emt 00:00:04]} a2 {[%clk 00:05:01]} {[%emt 00:00:07]}
43. Re1 {[%clk 00:00:15]} {[%emt 00:00:03]} f6 {[%clk 00:04:18]} {[%emt
00:00:49]} 44. f4 {[%clk 00:00:17]} {[%emt 00:00:03]} h6 {[%clk 00:04:08]}
{[%emt 00:00:15]} 45. g6 {[%clk 00:00:20]} {[%emt 00:00:03]} Kb3 {[%clk
00:03:57]} {[%emt 00:00:16]} 46. Re3+ {[%clk 00:00:23]} {[%emt 00:00:01]} Kc4
{[%clk 00:04:01]} {[%emt 00:00:01]} 47. Re4+ {[%clk 00:00:24]} {[%emt
00:00:04]} Kd5 {[%clk 00:03:49]} {[%emt 00:00:17]} 48. Ra4 {[%clk 00:00:25]}
{[%emt 00:00:04]} Ke6 {[%clk 00:03:49]} {[%emt 00:00:06]} 49. f5+ {[%clk
00:00:25]} {[%emt 00:00:04]} Ke5 {[%clk 00:03:52]} {[%emt 00:00:02]} 50. Rxa2
{[%clk 00:00:29]} {[%emt 00:00:01]} Rg8 {[%clk 00:03:45]} {[%emt 00:00:13]} 51.
Ra5+ {[%clk 00:00:32]} {[%emt 00:00:01]} Kd6 {[%clk 00:03:49]} {[%emt
00:00:01]} 52. Ra6+ {[%clk 00:00:36]} {[%emt 00:00:02]} Ke7 {[%clk 00:03:52]}
53. Re6+ {[%clk 00:00:40]} {[%emt 00:00:02]} Kf8 {[%clk 00:03:48]} {[%emt
00:00:09]} 54. Rxf6+ {[%clk 00:00:42]} {[%emt 00:00:03]} Kg7 {[%clk 00:03:50]}
{[%emt 00:00:03]} 55. Rd6 {[%clk 00:00:41]} {[%emt 00:00:05]} Rf8 {[%clk
00:03:13]} {[%emt 00:00:43]} 56. f6+ {[%clk 00:00:16]} {[%emt 00:00:31]} Rxf6
{[%clk 00:03:01]} {[%emt 00:00:16]} 57. Rxf6 {[%clk 00:00:19]} {[%emt
00:00:02]} Kxf6 {[%clk 00:03:05]} {[%emt 00:00:01]} 58. Kf4 {[%clk 00:00:22]}
{[%emt 00:00:03]} Ke6 {[%clk 00:03:06]} {[%emt 00:00:03]} 59. Ke4 {[%clk
00:00:24]} {[%emt 00:00:04]} Kf6 {[%clk 00:03:10]} {[%emt 00:00:01]} 60. Kd5
{[%clk 00:00:26]} {[%emt 00:00:03]} Kg5 {[%clk 00:03:14]} {[%emt 00:00:01]} 61.
g7 {[%clk 00:00:27]} {[%emt 00:00:03]} Kxh5 {[%clk 00:03:17]} {[%emt 00:00:02]}
62. g8=Q {[%clk 00:00:31]} {[%emt 00:00:01]} Kh4 {[%clk 00:03:20]} {[%emt
00:00:02]} 63. Ke4 {[%clk 00:00:30]} {[%emt 00:00:06]} Kh3 {[%clk 00:03:14]}
{[%emt 00:00:11]} 64. Kf3 {[%clk 00:00:31]} {[%emt 00:00:04]} h5 {[%emt
00:00:19]} 65. Qg3 {[%emt 00:00:03]} 1-0

[Event "MCR rapid mládeže 2023 U16"]
[Site "Harachov, Czech Republic"]
[Date "2023.09.09"]
[Round "2.30"]
[White "Fadrny, Jachym"]
[Black "Moravec, Rene"]
[Result "1-0"]
[TimeControl "20min+5s/move"]
[WhiteElo "1347"]
[BlackElo "1165"]

1. e4 {[%clk 00:20:06]} {[%emt 00:00:02]} c5 {[%clk 00:20:01]} {[%emt
00:00:11]} 2. Nf3 {[%clk 00:20:09]} {[%emt 00:00:02]} Nc6 {[%clk 00:19:49]}
{[%emt 00:00:17]} 3. d4 {[%clk 00:20:13]} {[%emt 00:00:01]} cxd4 {[%clk
00:19:20]} {[%emt 00:00:34]} 4. Nxd4 {[%clk 00:20:16]} {[%emt 00:00:02]} g6
{[%clk 00:19:16]} {[%emt 00:00:09]} 5. Nc3 {[%clk 00:20:14]} {[%emt 00:00:06]}
Bg7 {[%clk 00:19:19]} {[%emt 00:00:02]} 6. Be3 {[%clk 00:20:18]} {[%emt
00:00:02]} d6 {[%clk 00:19:21]} {[%emt 00:00:03]} 7. Bc4 {[%clk 00:19:56]}
{[%emt 00:00:27]} Nf6 {[%clk 00:18:57]} {[%emt 00:00:29]} 8. f3 {[%clk
00:19:36]} {[%emt 00:00:24]} O-O {[%clk 00:18:43]} {[%emt 00:00:19]} 9. O-O
{[%clk 00:18:55]} {[%emt 00:00:46]} Ne5 {[%clk 00:16:41]} {[%emt 00:02:08]} 10.
Bb3 {[%clk 00:18:04]} {[%emt 00:00:56]} Nc6 {[%clk 00:15:08]} {[%emt 00:01:37]}
11. Nxc6 {[%clk 00:15:03]} {[%emt 00:03:06]} bxc6 {[%clk 00:15:11]} {[%emt
00:00:03]} 12. Qe2 {[%clk 00:15:07]} {[%emt 00:00:01]} a5 {[%clk 00:12:31]}
{[%emt 00:02:46]} 13. Rfd1 {[%clk 00:14:48]} {[%emt 00:00:23]} Nd7 {[%clk
00:11:07]} {[%emt 00:01:29]} 14. Qf2 {[%clk 00:13:12]} {[%emt 00:01:41]} c5
{[%clk 00:10:48]} {[%emt 00:00:24]} 15. Ba4 {[%clk 00:12:30]} {[%emt 00:00:48]}
Rb8 {[%clk 00:10:24]} {[%emt 00:00:28]} 16. Rab1 {[%clk 00:10:58]} {[%emt
00:01:36]} Qc7 {[%clk 00:08:09]} {[%emt 00:02:20]} 17. Nd5 {[%clk 00:10:03]}
{[%emt 00:01:00]} Qd8 {[%clk 00:06:06]} {[%emt 00:02:09]} 18. c4 {[%clk
00:07:28]} {[%emt 00:02:40]} Ne5 {[%clk 00:02:50]} {[%emt 00:03:19]} 19. Bb5
{[%clk 00:04:45]} {[%emt 00:02:49]} Bd7 {[%clk 00:02:12]} {[%emt 00:00:44]} 20.
Nc3 {[%clk 00:04:16]} {[%emt 00:00:33]} Bxb5 {[%clk 00:00:52]} {[%emt
00:01:25]} 21. cxb5 {[%clk 00:04:18]} {[%emt 00:00:03]} Nd7 {[%clk 00:00:48]}
{[%emt 00:00:10]} 22. Qd2 {[%clk 00:03:04]} {[%emt 00:01:19]} Qc7 {[%clk
00:00:44]} {[%emt 00:00:09]} 23. Nd5 {[%clk 00:03:01]} {[%emt 00:00:07]} Qd8
{[%clk 00:00:48]} {[%emt 00:00:02]} 24. a4 {[%clk 00:02:40]} {[%emt 00:00:25]}
Bd4 {[%clk 00:00:39]} {[%emt 00:00:15]} 25. Bxd4 {[%clk 00:02:33]} {[%emt
00:00:11]} cxd4 {[%clk 00:00:43]} {[%emt 00:00:02]} 26. Qxd4 {[%clk 00:02:07]}
{[%emt 00:00:30]} Ne5 {[%clk 00:00:42]} {[%emt 00:00:06]} 27. f4 {[%clk
00:02:05]} {[%emt 00:00:06]} Nd7 {[%clk 00:00:43]} {[%emt 00:00:06]} 28. Rbc1
{[%clk 00:01:55]} {[%emt 00:00:15]} e6 {[%clk 00:00:45]} {[%emt 00:00:03]} 29.
Nc7 {[%clk 00:01:52]} {[%emt 00:00:08]} Nc5 {[%clk 00:00:36]} {[%emt 00:00:13]}
30. Qxd6 Qxd6 31. Rxd6 {[%clk 00:01:29]} {[%emt 00:00:02]} Nxe4 {[%clk
00:00:34]} {[%emt 00:00:12]} 32. Rdc6 {[%clk 00:01:24]} {[%emt 00:00:09]} Rbc8
{[%clk 00:00:31]} {[%emt 00:00:08]} 33. Na6 {[%clk 00:01:22]} {[%emt 00:00:07]}
Rxc6 {[%emt 00:00:04]} 34. Rxc6 {[%clk 00:01:24]} {[%emt 00:00:01]} Rd8 {[%clk
00:00:37]} {[%emt 00:00:03]} 35. h3 {[%clk 00:01:18]} {[%emt 00:00:10]} Rd1+
{[%clk 00:00:27]} {[%emt 00:00:15]} 36. Kh2 {[%clk 00:01:21]} {[%emt 00:00:02]}
Rd8 {[%clk 00:00:29]} {[%emt 00:00:04]} 37. b6 {[%clk 00:01:22]} {[%emt
00:00:04]} Nd6 {[%clk 00:00:30]} {[%emt 00:00:03]} 38. Rc7 {[%clk 00:01:10]}
{[%emt 00:00:18]} Ra8 {[%clk 00:00:24]} {[%emt 00:00:09]} 39. Ra7 {[%clk
00:01:02]} {[%emt 00:00:14]} Rc8 {[%clk 00:00:22]} {[%emt 00:00:04]} 40. b7
{[%clk 00:01:02]} {[%emt 00:00:08]} Nxb7 {[%clk 00:00:24]} {[%emt 00:00:03]} 41.
Rxb7 {[%clk 00:01:05]} {[%emt 00:00:01]} Rc6 {[%clk 00:00:28]} {[%emt
00:00:01]} 42. Nb8 {[%clk 00:01:03]} {[%emt 00:00:08]} Rd6 {[%clk 00:00:30]}
{[%emt 00:00:03]} 43. Nd7 {[%clk 00:00:56]} {[%emt 00:00:12]} Rd4 {[%clk
00:00:20]} {[%emt 00:00:14]} 44. Kg3 {[%clk 00:00:49]} {[%emt 00:00:13]} Rxa4
{[%clk 00:00:23]} {[%emt 00:00:02]} 45. Ne5 {[%clk 00:00:50]} {[%emt 00:00:04]}
Rb4 {[%clk 00:00:22]} {[%emt 00:00:06]} 46. Rxb4 {[%clk 00:00:52]} {[%emt
00:00:03]} axb4 {[%clk 00:00:26]} {[%emt 00:00:01]} 47. Nd3 {[%clk 00:00:55]}
{[%emt 00:00:01]} Kf8 {[%clk 00:00:30]} 48. Nxb4 {[%clk 00:00:59]} {[%emt
00:00:02]} Ke7 {[%clk 00:00:35]} 49. Kf3 {[%clk 00:00:57]} {[%emt 00:00:07]} f6
{[%clk 00:00:38]} {[%emt 00:00:01]} 50. Nd3 {[%clk 00:01:00]} {[%emt 00:00:02]}
Kd6 {[%clk 00:00:42]} {[%emt 00:00:02]} 51. b4 {[%clk 00:01:04]} {[%emt
00:00:01]} Kc6 {[%clk 00:00:46]} {[%emt 00:00:01]} 52. g4 {[%clk 00:01:07]}
{[%emt 00:00:02]} Kb5 {[%clk 00:00:48]} {[%emt 00:00:03]} 53. g5 {[%clk
00:01:09]} {[%emt 00:00:03]} fxg5 {[%clk 00:00:51]} {[%emt 00:00:02]} 54. fxg5
{[%clk 00:01:12]} {[%emt 00:00:01]} e5 {[%clk 00:00:55]} {[%emt 00:00:02]} 55.
Ke4 {[%clk 00:01:14]} {[%emt 00:00:03]} Kc4 {[%clk 00:00:59]} {[%emt 00:00:01]}
56. h4 {[%clk 00:01:15]} {[%emt 00:00:03]} Kb5 {[%clk 00:00:59]} {[%emt
00:00:05]} 57. Kxe5 {[%clk 00:01:17]} {[%emt 00:00:02]} Kc4 {[%clk 00:01:04]}
58. b5 {[%clk 00:01:18]} {[%emt 00:00:05]} Kxb5 {[%clk 00:01:08]} {[%emt
00:00:02]} 59. Nf4 {[%clk 00:01:21]} {[%emt 00:00:01]} Kc6 {[%clk 00:01:12]}
{[%emt 00:00:01]} 60. Kf6 {[%clk 00:01:25]} {[%emt 00:00:01]} Kd7 {[%clk
00:01:16]} 61. Kg7 {[%clk 00:01:27]} {[%emt 00:00:03]} Ke7 {[%clk 00:01:19]} 62.
Kxh7 {[%clk 00:01:31]} {[%emt 00:00:03]} Kf7 {[%clk 00:01:23]} {[%emt
00:00:01]} 63. Nxg6 {[%clk 00:01:33]} {[%emt 00:00:02]} Ke6 {[%clk 00:01:29]}
{[%emt 00:00:48]} 64. Kg7 {[%clk 00:02:31]} {[%emt 00:00:02]} Kf5 {[%clk
00:01:31]} {[%emt 00:00:03]} 65. h5 {[%clk 00:02:33]} {[%emt 00:00:03]} Kxg5
{[%clk 00:01:34]} {[%emt 00:00:02]} 66. h6 {[%clk 00:02:36]} {[%emt 00:00:01]}
Kh5 {[%clk 00:01:35]} {[%emt 00:00:04]} 67. h7 {[%clk 00:02:40]} {[%emt
00:00:02]} Kg5 {[%clk 00:01:39]} {[%emt 00:00:01]} 68. h8=Q {[%clk 00:02:42]}
{[%emt 00:00:03]} Kf5 {[%clk 00:01:42]} {[%emt 00:00:02]} 69. Qf8+ {[%clk
00:02:43]} {[%emt 00:00:03]} Kg5 {[%clk 00:01:46]} {[%emt 00:00:01]} 70. Qf6+
{[%clk 00:02:46]} {[%emt 00:00:03]} Kg4 {[%clk 00:01:48]} {[%emt 00:00:02]} 71.
Qf4+ {[%clk 00:02:48]} {[%emt 00:00:03]} Kh3 {[%clk 00:01:52]} {[%emt
00:00:02]} 72. Kf6 {[%clk 00:02:50]} {[%emt 00:00:02]} Kg2 {[%clk 00:01:55]}
{[%emt 00:00:02]} 73. Ke5 {[%clk 00:02:51]} {[%emt 00:00:04]} Kh3 {[%clk
00:01:56]} {[%emt 00:00:04]} 74. Qg5 {[%clk 00:02:53]} {[%emt 00:00:03]} Kh2
{[%clk 00:02:00]} {[%emt 00:00:01]} 75. Nf4 {[%clk 00:02:54]} {[%emt 00:00:04]}
Kh1 {[%clk 00:02:02]} {[%emt 00:00:02]} 76. Qg2# {[%clk 00:02:58]} 1-0

[Event "MCR rapid mládeže 2023 U16"]
[Site "Harachov, Czech Republic"]
[Date "2023.09.09"]
[Round "2.31"]
[White "Hradek, Martin"]
[Black "Gernert , Tomas"]
[Result "0-1"]
[TimeControl "20min+5s/move"]
[WhiteElo "1560"]
[BlackElo "1236"]

1. e4 {[%clk 00:20:09]} {[%emt 00:00:01]} c5 {[%clk 00:20:10]} {[%emt
00:00:01]} 2. Nf3 {[%clk 00:20:11]} {[%emt 00:00:02]} Nc6 {[%clk 00:20:14]}
{[%emt 00:00:01]} 3. d4 {[%clk 00:20:11]} {[%emt 00:00:05]} cxd4 {[%clk
00:20:17]} {[%emt 00:00:02]} 4. Nxd4 {[%clk 00:20:13]} {[%emt 00:00:02]} g6
{[%clk 00:20:20]} {[%emt 00:00:02]} 5. Bc4 {[%clk 00:20:06]} {[%emt 00:00:11]}
Bg7 {[%clk 00:20:23]} {[%emt 00:00:03]} 6. Nxc6 {[%clk 00:20:07]} {[%emt
00:00:03]} bxc6 {[%clk 00:20:26]} {[%emt 00:00:03]} 7. Nc3 {[%clk 00:20:09]}
{[%emt 00:00:03]} Nf6 {[%clk 00:20:20]} {[%emt 00:00:11]} 8. O-O {[%clk
00:20:07]} {[%emt 00:00:07]} Bb7 {[%clk 00:20:21]} {[%emt 00:00:04]} 9. e5
{[%clk 00:20:08]} {[%emt 00:00:03]} Ng8 {[%clk 00:20:07]} {[%emt 00:00:20]} 10.
Re1 {[%clk 00:20:00]} {[%emt 00:00:13]} Nh6 {[%clk 00:20:07]} {[%emt 00:00:04]}
11. Bxh6 {[%clk 00:19:57]} {[%emt 00:00:08]} Bxh6 {[%clk 00:20:10]} {[%emt
00:00:02]} 12. Qf3 {[%clk 00:19:38]} {[%emt 00:00:25]} O-O {[%clk 00:19:52]}
{[%emt 00:00:22]} 13. Rad1 {[%clk 00:19:22]} {[%emt 00:00:21]} d5 {[%clk
00:18:55]} {[%emt 00:01:02]} 14. h3 {[%clk 00:18:42]} {[%emt 00:00:45]} Qb6
{[%clk 00:17:52]} {[%emt 00:01:08]} 15. Bb3 {[%clk 00:18:34]} {[%emt 00:00:13]}
d4 {[%clk 00:16:53]} {[%emt 00:01:05]} 16. Na4 {[%clk 00:18:19]} {[%emt
00:00:19]} Qc7 {[%clk 00:16:46]} {[%emt 00:00:13]} 17. Qg4 {[%clk 00:17:53]}
{[%emt 00:00:31]} c5 {[%clk 00:15:47]} {[%emt 00:01:04]} 18. a3 {[%clk
00:17:25]} {[%emt 00:00:33]} Qc6 {[%clk 00:14:24]} {[%emt 00:01:28]} 19. f3
{[%clk 00:13:47]} {[%emt 00:03:44]} Be3+ {[%clk 00:13:17]} {[%emt 00:01:11]} 20.
Kh1 {[%clk 00:13:32]} {[%emt 00:00:19]} c4 {[%clk 00:13:20]} {[%emt 00:00:03]}
21. Ba2 {[%clk 00:13:23]} {[%emt 00:00:12]} Qxa4 {[%clk 00:13:18]} {[%emt
00:00:09]} 22. e6 {[%clk 00:12:44]} {[%emt 00:00:44]} f5 {[%clk 00:12:50]}
{[%emt 00:00:32]} 23. Qh4 {[%clk 00:12:04]} {[%emt 00:00:45]} Qxc2 {[%clk
00:11:56]} {[%emt 00:00:59]} 24. Qxe7 {[%clk 00:11:47]} {[%emt 00:00:22]} Ba6
{[%clk 00:10:00]} {[%emt 00:02:02]} 25. Qd7 {[%clk 00:10:11]} {[%emt 00:01:41]}
d3 {[%clk 00:05:33]} {[%emt 00:04:32]} 26. e7 {[%clk 00:09:55]} {[%emt
00:00:21]} Rf7 {[%clk 00:03:42]} {[%emt 00:01:56]} 27. e8=Q+ {[%clk 00:09:49]}
{[%emt 00:00:11]} Rxe8 {[%clk 00:03:02]} {[%emt 00:00:45]} 28. Qxe8+ {[%clk
00:09:49]} {[%emt 00:00:04]} Kg7 {[%clk 00:02:21]} {[%emt 00:00:47]} 29. Qxe3
{[%clk 00:09:50]} {[%emt 00:00:05]} Qxb2 {[%clk 00:02:10]} {[%emt 00:00:14]} 30.
Qe5+ {[%clk 00:09:36]} {[%emt 00:00:19]} Qxe5 {[%clk 00:01:59]} {[%emt
00:00:17]} 31. Rxe5 {[%clk 00:09:38]} {[%emt 00:00:02]} Rc7 {[%clk 00:01:47]}
{[%emt 00:00:17]} 32. Ra5 {[%clk 00:07:47]} {[%emt 00:01:57]} c3 {[%clk
00:00:49]} {[%emt 00:01:04]} 33. Rxa6 {[%clk 00:07:36]} {[%emt 00:00:15]} c2
{[%clk 00:00:53]} {[%emt 00:00:01]} 34. Bb3 {[%clk 00:03:39]} {[%emt 00:04:02]}
cxd1=Q+ {[%clk 00:00:42]} {[%emt 00:00:14]} 35. Bxd1 {[%clk 00:03:42]} {[%emt
00:00:03]} Rc1 {[%clk 00:00:42]} {[%emt 00:00:05]} 36. Rxa7+ {[%clk 00:03:39]}
{[%emt 00:00:08]} Kf6 {[%clk 00:00:42]} {[%emt 00:00:05]} 37. Rd7 {[%clk
00:03:36]} {[%emt 00:00:08]} Rxd1+ {[%clk 00:00:43]} {[%emt 00:00:04]} 38. Kh2
{[%clk 00:03:40]} {[%emt 00:00:02]} d2 {[%clk 00:00:35]} {[%emt 00:00:13]} 39.
a4 {[%clk 00:03:40]} {[%emt 00:00:05]} Ra1 {[%clk 00:00:26]} {[%emt 00:00:13]}
40. Rxd2 {[%clk 00:03:34]} {[%emt 00:00:06]} Rxa4 {[%clk 00:00:27]} {[%emt
00:00:09]} 41. Kg3 {[%clk 00:03:29]} {[%emt 00:00:10]} g5 {[%clk 00:00:31]}
{[%emt 00:00:01]} 42. Rd7 {[%clk 00:03:10]} {[%emt 00:00:25]} h5 {[%clk
00:00:30]} {[%emt 00:00:05]} 43. Rh7 {[%clk 00:02:55]} {[%emt 00:00:20]} h4+
{[%clk 00:00:31]} {[%emt 00:00:05]} 44. Kf2 {[%clk 00:02:55]} {[%emt 00:00:04]}
Ra2+ {[%clk 00:00:34]} {[%emt 00:00:02]} 45. Kg1 {[%clk 00:02:51]} {[%emt
00:00:09]} Ke5 {[%clk 00:00:35]} {[%emt 00:00:04]} 46. Rh5 {[%clk 00:02:46]}
{[%emt 00:00:10]} Kf4 {[%clk 00:00:39]} {[%emt 00:00:01]} 47. Rh6 {[%clk
00:02:39]} {[%emt 00:00:13]} Kg3 {[%clk 00:00:40]} {[%emt 00:00:04]} 48. Kf1
{[%clk 00:02:28]} {[%emt 00:00:15]} Rxg2 {[%clk 00:00:31]} {[%emt 00:00:13]} 49.
Rf6 {[%clk 00:02:15]} {[%emt 00:00:19]} Rf2+ {[%clk 00:00:28]} {[%emt
00:00:09]} 50. Ke1 {[%clk 00:02:10]} {[%emt 00:00:09]} Rxf3 {[%clk 00:00:31]}
{[%emt 00:00:02]} 51. Rg6 {[%clk 00:02:08]} {[%emt 00:00:07]} g4 {[%clk
00:00:30]} {[%emt 00:00:07]} 52. hxg4 {[%clk 00:02:10]} {[%emt 00:00:03]} fxg4
{[%clk 00:00:33]} {[%emt 00:00:02]} 53. Rc6 {[%clk 00:02:03]} {[%emt 00:00:11]}
h3 {[%clk 00:00:36]} {[%emt 00:00:03]} 54. Rc2 {[%clk 00:02:06]} {[%emt
00:00:02]} h2 {[%clk 00:00:39]} {[%emt 00:00:01]} 0-1